fUST/lending_fUST_20250123
["ID","MTS","AMOUNT","RATE_DAILY","PERIOD"]
[350118347,1737640237925,-500.0,0.00019452,2]
[350118348,1737640237934,-1177.43,0.00019452,3]
[350118349,1737640237943,-296.41712949,0.00019452,3]
[350118350,1737640237953,-2125.68,0.00019452,3]
[350118351,1737640237962,-500.0,0.00019452,3]
[350118352,1737640237971,-54.96346779,0.00019452,2]
[350118353,1737640237983,-96.03653221,0.00019452,2]
[350118354,1737640237992,-151.0,0.00019452,2]
[350118355,1737640238001,-151.0,0.00019452,2]
[350118356,1737640238011,-151.0,0.00019452,2]
[350118357,1737640238020,-1777.1,0.00019452,3]
[350118358,1737640238029,-514.83,0.00019452,3]
[350118359,1737640238039,-500.0,0.00019452,3]
[350118360,1737640238048,-417.66150975,0.00019452,3]
[350118394,1737640240077,-82.33849025,0.00019452,3]
[350118396,1737640240087,-749.87,0.00019452,3]
[350118398,1737640240097,-539.69,0.00019452,3]
[350118400,1737640240106,-856.39814582,0.00019452,3]
[350118406,1737640240156,-3262.27185418,0.00019452,3]
[350118408,1737640240166,-10160.17,0.00019452,3]
[350118410,1737640240175,-723.1,0.00019452,3]
[350118412,1737640240184,-500.0,0.00019452,3]
[350118414,1737640240193,-500.0,0.00019452,3]
[350118416,1737640240202,-500.0,0.00019452,3]
[350118418,1737640240212,-500.0,0.00019452,3]
[350118420,1737640240221,-753.17,0.00019452,3]
[350118423,1737640240230,-560.58,0.00019452,3]
[350118425,1737640240240,-2205.41,0.00019452,3]
[350118426,1737640240249,-2842.32,0.00019452,3]
[350118429,1737640240258,-1382.23909157,0.000195,2]
[350118714,1737640242979,-617.76090943,0.000195,2]
[350118716,1737640242988,-612.87445569,0.00019589,3]
[350118718,1737640242998,-500.0,0.00019589,3]
[350118720,1737640243007,-500.0,0.00019589,3]
[350118722,1737640243018,-324.0,0.00019589,2]
[350118724,1737640243027,-324.0,0.00019589,2]
[350118726,1737640243036,-500.0,0.00019589,3]
[350118728,1737640243045,-698.99,0.00019589,2]
[350118730,1737640243054,-859.3,0.00019589,3]
[350118732,1737640243063,-500.0,0.00019589,3]
[350118734,1737640243073,-500.0,0.00019589,3]
[350118736,1737640243082,-500.0,0.00019589,3]
[350118738,1737640243091,-500.0,0.00019589,2]
[350118740,1737640243101,-1177.43,0.00019589,3]
[350118742,1737640243110,-2125.68,0.00019589,3]
[350118744,1737640243119,-500.0,0.00019589,3]
[350118746,1737640243129,-151.0,0.00019589,2]
[350118748,1737640243138,-151.0,0.00019589,2]
[350118750,1737640243148,-151.0,0.00019589,2]
[350118752,1737640243157,-151.0,0.00019589,2]
[350118754,1737640243166,-1777.1,0.00019589,3]
[350118756,1737640243175,-514.83,0.00019589,3]
[350118758,1737640243185,-500.0,0.00019589,3]
[350118760,1737640243194,-500.0,0.00019589,3]
[350118762,1737640243203,-749.87,0.00019589,3]
[350118764,1737640243212,-4118.67,0.00019589,3]
[350118766,1737640243221,-539.69,0.00019589,3]
[350118768,1737640243230,-10160.17,0.00019589,3]
[350118770,1737640243240,-723.1,0.00019589,3]
[350118772,1737640243250,-500.0,0.00019589,3]
[350118774,1737640243259,-500.0,0.00019589,3]
[350118776,1737640243269,-500.0,0.00019589,3]
[350118778,1737640243278,-500.0,0.00019589,3]
[350118779,1737640243287,-753.17,0.00019589,3]
[350118781,1737640243297,-560.58,0.00019589,3]
[350118783,1737640243306,-2205.41,0.00019589,3]
[350118785,1737640243315,-2842.32,0.00019589,3]
[350118787,1737640243325,-153.0,0.00019616,2]
[350118789,1737640243334,-150.502,0.00019657,2]
[350118791,1737640243343,-2059.0,0.00019657,2]
[350118793,1737640243353,-2305.0,0.00019657,2]
[350118795,1737640243363,-395.0,0.00019657,2]
[350118797,1737640243372,-500.0,0.00019725,2]
[350118799,1737640243381,-185.03056988,0.00019725,2]
[350118801,1737640243390,-190.37092856,0.00019725,2]
[350118803,1737640243400,-6961.27660318,0.00019726,5]
[350118805,1737640243409,-2691.61689793,0.00019726,5]
[350118807,1737640243419,-355.501,0.00019726,2]
[350118809,1737640243428,-500.0,0.00019726,3]
[350118811,1737640243438,-500.0,0.00019726,3]
[350118813,1737640243448,-324.0,0.00019726,2]
[350118815,1737640243457,-324.0,0.00019726,2]
[350118817,1737640243470,-500.0,0.00019726,3]
[350118819,1737640243480,-698.99,0.00019726,2]
[350118821,1737640243489,-859.3,0.00019726,3]
[350118823,1737640243499,-500.0,0.00019726,3]
[350118825,1737640243508,-500.0,0.00019726,3]
[350118827,1737640243519,-500.0,0.00019726,3]
[350118829,1737640243529,-500.0,0.00019726,2]
[350118831,1737640243538,-1177.43,0.00019726,3]
[350118833,1737640243548,-2125.68,0.00019726,3]
[350118835,1737640243557,-500.0,0.00019726,3]
[350118837,1737640243567,-151.0,0.00019726,2]
[350118839,1737640243576,-151.0,0.00019726,2]
[350118841,1737640243585,-225.778286,0.00019726,2]
[350118843,1737640243594,-1777.1,0.00019726,3]
[350118845,1737640243604,-514.83,0.00019726,3]
[350118847,1737640243613,-500.0,0.00019726,3]
[350118849,1737640243625,-500.0,0.00019726,3]
[350118851,1737640243635,-749.87,0.00019726,3]
[350118853,1737640243644,-4118.67,0.00019726,3]
[350118855,1737640243655,-539.69,0.00019726,3]
[350118857,1737640243664,-10160.17,0.00019726,3]
[350118859,1737640243674,-723.1,0.00019726,3]
[350118861,1737640243683,-500.0,0.00019726,3]
[350118863,1737640243693,-500.0,0.00019726,3]
[350118865,1737640243703,-500.0,0.00019726,3]
[350118867,1737640243715,-500.0,0.00019726,3]
[350118869,1737640243724,-753.17,0.00019726,3]
[350118870,1737640243733,-560.58,0.00019726,3]
[350118873,1737640243743,-2205.41,0.00019726,3]
[350118874,1737640243752,-2842.32,0.00019726,3]
[350118876,1737640243761,-153.0,0.00019731,2]
[350118878,1737640243772,-153.0,0.00019731,2]
[350118880,1737640243793,-153.0,0.00019731,2]
[350118883,1737640243804,-153.0,0.00019731,2]
[350118884,1737640243814,-153.0,0.00019731,2]
[350118886,1737640243823,-153.0,0.00019731,2]
[350118888,1737640243832,-153.0,0.00019731,2]
[350118890,1737640243841,-153.0,0.00019731,2]
[350118892,1737640243850,-153.0,0.00019731,2]
[350118894,1737640243860,-153.0,0.00019731,2]
[350118896,1737640243869,-153.0,0.00019731,2]
[350118898,1737640243878,-153.0,0.00019731,2]
[350118900,1737640243887,-153.0,0.00019731,2]
[350118902,1737640243897,-153.0,0.00019731,2]
[350118904,1737640243906,-153.0,0.00019731,2]
[350118906,1737640243916,-153.0,0.00019731,2]
[350118908,1737640243926,-241.0,0.00019731,2]
[350118910,1737640243935,-433.43155625,0.00019775,2]
[350118912,1737640243943,-151.0,0.00019861,2]
[350118914,1737640243953,-500.0,0.00019863,3]
[350118916,1737640243962,-500.0,0.00019863,3]
[350118918,1737640243971,-324.0,0.00019863,2]
[350118920,1737640243980,-324.0,0.00019863,2]
[350118922,1737640243992,-500.0,0.00019863,3]
[350118924,1737640244001,-698.99,0.00019863,2]
[350118926,1737640244010,-859.3,0.00019863,3]
[350118928,1737640244022,-500.0,0.00019863,3]
[350118930,1737640244031,-500.0,0.00019863,3]
[350118932,1737640244041,-500.0,0.00019863,3]
[350118934,1737640244050,-500.0,0.00019863,2]
[350118936,1737640244060,-1177.43,0.00019863,3]
[350118938,1737640244069,-2125.68,0.00019863,3]
[350118940,1737640244078,-500.0,0.00019863,3]
[350118942,1737640244087,-151.0,0.00019863,2]
[350118944,1737640244096,-1777.1,0.00019863,3]
[350118946,1737640244105,-514.83,0.00019863,3]
[350118948,1737640244115,-500.0,0.00019863,3]
[350118950,1737640244124,-500.0,0.00019863,3]
[350118952,1737640244134,-749.87,0.00019863,3]
[350118954,1737640244143,-4118.67,0.00019863,3]
[350118956,1737640244155,-539.69,0.00019863,3]
[350118957,1737640244167,-10160.17,0.00019863,3]
[350118960,1737640244178,-723.1,0.00019863,3]
[350118961,1737640244188,-500.0,0.00019863,3]
[350118964,1737640244198,-500.0,0.00019863,3]
[350118966,1737640244208,-500.0,0.00019863,3]
[350118967,1737640244217,-413.95852504,0.00019863,3]
[350118969,1737640244227,-753.17,0.00019863,3]
[350118972,1737640244236,-560.58,0.00019863,3]
[350118973,1737640244246,-2205.41,0.00019863,3]
[350118975,1737640244255,-2842.32,0.00019863,3]
[350118977,1737640244268,-502.11291803,0.00019867,2]
[350118979,1737640244277,-500.0,0.00019867,2]
[350118981,1737640244287,-8273.35766833,0.000199,2]
[350118983,1737640244296,-6105.77680324,0.000199,2]
[350118985,1737640244305,-1275.354079,0.0001992,5]
[350118987,1737640244315,-500.0,0.00019922,2]
[350118990,1737640244324,-22575.37808345,0.00019935,2]
[350118991,1737640244334,-1000.0,0.0001994,5]
[350118994,1737640244344,-1000.0,0.0001996,5]
[350118995,1737640244353,-501.66446448,0.00019973,2]
[350118997,1737640244363,-500.0,0.00019973,2]
[350118999,1737640244372,-500.54245875,0.00019973,2]
[350119002,1737640244381,-369.99305824,0.00019973,2]
[350119004,1737640244391,-500.0,0.00019973,2]
[350119006,1737640244400,-500.0,0.00019973,2]
[350119007,1737640244409,-1000.0,0.0001998,5]
[350119009,1737640244418,-2500.0,0.00019991,2]
[350119012,1737640244428,-43275.45954851,0.0002,2]
[350119014,1737640244441,-1273.75,0.0002,2]
[350119862,1737641038276,500.0,0.00024,120]
[350119864,1737641205944,236.20714,0.00013973,2]
[350119931,1737641432399,-321.69498444,0.00015657,2]
[350119933,1737641432409,-321.69498444,0.00015815,2]
[350119935,1737641432419,-500.0,0.00017664,2]
[350119937,1737641432428,-649.4564218,0.00017711,2]
[350119939,1737641432438,-160.085703,0.00017779,2]
[350119941,1737641432447,-196.413887,0.00017808,2]
[350119943,1737641432456,-518.70372237,0.00017888,2]
[350119945,1737641432468,-1710.08684084,0.00017888,2]
[350119947,1737641432480,-1653.61767379,0.00017888,2]
[350119949,1737641432489,-152.31301477,0.00018616,2]
[350119951,1737641432499,-311.112,0.00019,2]
[350119953,1737641432508,-281.173233,0.00019,2]
[350119955,1737641432517,-568.72364522,0.00019078,2]
[350119957,1737641432527,-433.16889561,0.00019078,2]
[350119959,1737641432537,-437.03779696,0.00019078,2]
[350119961,1737641432546,-300.0,0.00019099,2]
[350119963,1737641432555,-300.0,0.000191,8]
[350119965,1737641432567,-5108.37639649,0.00019168,2]
[350119968,1737641432580,-7453.61301703,0.00019168,2]
[350119970,1737641432593,-500.0,0.00019178,2]
[350119972,1737641432602,-500.0,0.00019178,2]
[350119973,1737641432612,-500.0,0.00019178,2]
[350119975,1737641432622,-500.0,0.00019178,2]
[350119977,1737641432631,-500.0,0.00019178,2]
[350119979,1737641432641,-500.0,0.00019178,2]
[350119981,1737641432651,-500.0,0.00019178,2]
[350119983,1737641432660,-500.0,0.00019178,2]
[350119985,1737641432670,-500.0,0.00019178,2]
[350119987,1737641432680,-256.18645909,0.00019178,2]
[350119989,1737641432689,-500.0,0.00019178,2]
[350119991,1737641432699,-328.27152443,0.00019178,2]
[350119993,1737641432711,-171.72847557,0.00019178,2]
[350119995,1737641432721,-500.0,0.00019178,2]
[350119997,1737641432734,-500.0,0.00019178,2]
[350119999,1737641432743,-500.0,0.00019178,2]
[350120001,1737641432753,-500.0,0.00019178,2]
[350120004,1737641432763,-279.61325516,0.00019178,2]
[350120006,1737641432773,-522.73394425,0.00019178,2]
[350120008,1737641432783,-500.0,0.00019178,2]
[350120010,1737641432793,-500.0,0.00019178,2]
[350120012,1737641432803,-500.0,0.00019178,2]
[350120014,1737641432815,-500.0,0.00019178,2]
[350120016,1737641432825,-500.0,0.00019178,2]
[350120018,1737641432835,-500.0,0.00019178,2]
[350120020,1737641432844,-500.0,0.00019178,2]
[350120022,1737641432854,-500.0,0.00019178,2]
[350120024,1737641432863,-500.0,0.00019178,2]
[350120026,1737641432873,-500.0,0.00019178,2]
[350120028,1737641432882,-529.17843527,0.00019178,2]
[350120030,1737641432892,-500.0,0.00019178,2]
[350120032,1737641432902,-500.0,0.00019178,2]
[350120034,1737641432911,-500.0,0.00019178,2]
[350120036,1737641432921,-500.0,0.00019178,2]
[350120038,1737641432931,-500.0,0.00019178,2]
[350120040,1737641432940,-500.0,0.00019178,2]
[350120042,1737641432950,-500.0,0.00019178,2]
[350120044,1737641432960,-500.0,0.00019178,2]
[350120046,1737641432970,-500.0,0.00019178,2]
[350120048,1737641432981,-500.0,0.00019178,2]
[350120050,1737641432993,-500.11280654,0.00019178,2]
[350120052,1737641433003,-637.1,0.00019178,2]
[350120054,1737641433013,-297.58400498,0.00019178,2]
[350120056,1737641433023,-398.86679036,0.00019178,2]
[350120057,1737641433033,-505.35425765,0.00019178,2]
[350120059,1737641433042,-500.0,0.00019178,2]
[350120061,1737641433052,-500.0,0.00019178,2]
[350120063,1737641433063,-500.0,0.00019178,2]
[350120065,1737641433074,-500.0,0.00019178,2]
[350120067,1737641433084,-153.49,0.00019178,2]
[350120069,1737641433093,-501.7517271,0.00019178,2]
[350120071,1737641433103,-500.0,0.00019178,2]
[350120073,1737641433113,-501.89478882,0.00019178,2]
[350120075,1737641433123,-504.66805009,0.00019178,2]
[350120077,1737641433132,-506.6143364,0.00019178,2]
[350120079,1737641433142,-507.07728348,0.00019178,2]
[350120081,1737641433151,-513.54563922,0.00019178,2]
[350120083,1737641433161,-500.0,0.00019178,2]
[350120085,1737641433170,-500.0,0.00019178,2]
[350120087,1737641433180,-500.0,0.00019178,2]
[350120089,1737641433190,-596.22,0.00019178,2]
[350120091,1737641433200,-602.56162415,0.00019178,2]
[350120093,1737641433210,-500.0,0.00019178,2]
[350120095,1737641433219,-468.25779566,0.00019178,2]
[350120097,1737641433228,-500.0,0.00019178,2]
[350120099,1737641433238,-500.0,0.00019178,2]
[350120101,1737641433248,-500.0,0.00019178,2]
[350120103,1737641433258,-707.01,0.00019178,2]
[350120105,1737641433268,-506.21570662,0.00019178,2]
[350120107,1737641433281,-500.0,0.00019178,2]
[350120109,1737641433291,-515.40166202,0.00019178,2]
[350120111,1737641433300,-500.0,0.00019178,2]
[350120113,1737641433312,-500.0,0.00019178,2]
[350120115,1737641433323,-500.0,0.00019178,2]
[350120128,1737641433450,-500.0,0.00019178,2]
[350120130,1737641433461,-515.24604789,0.00019178,2]
[350120133,1737641433472,-2863.04,0.00019178,2]
[350120134,1737641433482,-500.0,0.00019178,2]
[350120137,1737641433492,-500.0,0.00019178,2]
[350120139,1737641433501,-500.0,0.00019178,2]
[350120141,1737641433510,-985.65,0.00019178,2]
[350120143,1737641433519,-500.0,0.00019178,2]
[350120145,1737641433529,-500.0,0.00019178,2]
[350120147,1737641433539,-500.0,0.00019178,2]
[350120149,1737641433548,-500.0,0.00019178,2]
[350120151,1737641433559,-500.0,0.00019178,2]
[350120153,1737641433569,-1663.1,0.00019178,2]
[350120155,1737641433578,-500.0,0.00019178,2]
[350120157,1737641433587,-500.0,0.00019178,2]
[350120159,1737641433596,-500.0,0.00019178,2]
[350120161,1737641433606,-500.0,0.00019178,2]
[350120163,1737641433615,-640.11,0.00019178,2]
[350120165,1737641433625,-500.0,0.00019178,2]
[350120167,1737641433635,-500.0,0.00019178,2]
[350120169,1737641433644,-500.0,0.00019178,2]
[350120171,1737641433654,-518.48413427,0.00019178,2]
[350120173,1737641433663,-500.0,0.00019178,2]
[350120175,1737641433672,-500.0,0.00019178,2]
[350120177,1737641433681,-503.64492954,0.00019178,2]
[350120179,1737641433691,-422.38571152,0.00019178,2]
[350120181,1737641433700,-503.35735825,0.00019178,2]
[350120183,1737641433709,-500.0,0.00019178,2]
[350120185,1737641433718,-500.0,0.00019178,2]
[350120187,1737641433730,-1682.83,0.00019178,2]
[350120189,1737641433739,-500.0,0.00019178,2]
[350120192,1737641433749,-501.48208946,0.00019178,2]
[350120194,1737641433760,-500.0,0.00019178,2]
[350120196,1737641433769,-500.0,0.00019178,2]
[350120198,1737641433778,-516.16,0.00019178,2]
[350120200,1737641433788,-500.0,0.00019178,2]
[350120202,1737641433798,-500.0,0.00019178,2]
[350120204,1737641433809,-504.32752036,0.00019178,2]
[350120206,1737641433818,-500.0,0.00019178,2]
[350120208,1737641433827,-500.0,0.00019178,2]
[350120210,1737641433837,-500.0,0.00019178,2]
[350120212,1737641433846,-308.97739934,0.00019178,2]
[350120214,1737641433856,-500.0,0.00019178,2]
[350120216,1737641433865,-500.0,0.00019178,2]
[350120218,1737641433875,-625.66,0.00019178,2]
[350120220,1737641433884,-500.0,0.00019178,2]
[350120222,1737641433894,-500.0,0.00019178,2]
[350120224,1737641433903,-515.36453657,0.00019178,2]
[350120226,1737641433913,-1467.36,0.00019178,2]
[350120228,1737641433922,-500.0,0.00019178,2]
[350120229,1737641433932,-500.0,0.00019178,2]
[350120232,1737641433942,-500.0,0.00019178,2]
[350120233,1737641433952,-500.0,0.00019178,2]
[350120235,1737641433962,-500.0,0.00019178,2]
[350120237,1737641433971,-500.0,0.00019178,2]
[350120239,1737641433983,-500.0,0.00019178,2]
[350120241,1737641433994,-3214.97,0.00019178,2]
[350120243,1737641434004,-513.56590105,0.00019178,2]
[350120245,1737641434014,-500.0,0.00019178,2]
[350120247,1737641434024,-500.0,0.00019178,2]
[350120249,1737641434034,-500.0,0.00019178,2]
[350120250,1737641434044,-630.71,0.00019178,2]
[350120251,1737641434053,-7893.77,0.00019178,2]
[350120252,1737641434064,-500.0,0.00019178,2]
[350120253,1737641434073,-500.0,0.00019178,2]
[350120254,1737641434082,-627.37,0.00019178,2]
[350120255,1737641434092,-500.0,0.00019178,2]
[350120256,1737641434109,-500.0,0.00019178,2]
[350120257,1737641434131,-500.0,0.00019178,2]
[350120258,1737641434149,-500.0,0.00019178,2]
[350120259,1737641434162,-1797.34,0.00019178,2]
[350120260,1737641434171,-187.59118482,0.00019178,2]
[350120261,1737641434185,-312.40881518,0.00019178,2]
[350120262,1737641434194,-500.0,0.00019178,2]
[350120264,1737641434203,-500.0,0.00019178,2]
[350120266,1737641434212,-500.0,0.00019178,2]
[350120268,1737641434221,-500.0,0.00019178,2]
[350120270,1737641434230,-500.0,0.00019178,2]
[350120272,1737641434240,-433.16889558,0.00019181,2]
[350120274,1737641434249,-1178.54,0.000192,2]
[350120276,1737641434259,-169.45467186,0.00019205,2]
[350120278,1737641434269,-433.16889558,0.00019284,2]
[350120280,1737641434278,-164.61787,0.00019312,2]
[350120282,1737641434288,-151.0,0.00019312,2]
[350120284,1737641434298,-500.0,0.00019314,3]
[350120286,1737641434308,-500.0,0.00019314,3]
[350120288,1737641434320,-500.0,0.00019314,3]
[350120290,1737641434330,-500.0,0.00019314,3]
[350120292,1737641434340,-151.0,0.00019314,2]
[350120293,1737641434349,-500.0,0.00019314,3]
[350120296,1737641434359,-500.0,0.00019314,3]
[350120297,1737641434369,-483.25964999,0.00019314,2]
[350120299,1737641434379,-500.0,0.00019314,3]
[350120301,1737641434388,-500.0,0.00019314,3]
[350120303,1737641434400,-500.0,0.00019315,3]
[350120305,1737641434409,-500.0,0.00019315,3]
[350120307,1737641434418,-500.0,0.00019315,3]
[350120309,1737641434428,-609.30933581,0.00019315,3]
[350120312,1737641434437,-500.0,0.00019315,3]
[350120314,1737641434447,-500.0,0.00019315,3]
[350120316,1737641434456,-500.0,0.00019315,3]
[350120318,1737641434466,-500.0,0.00019315,3]
[350120320,1737641434475,-500.0,0.00019315,3]
[350120322,1737641434485,-500.0,0.00019315,3]
[350120324,1737641434495,-500.0,0.00019315,3]
[350120326,1737641434504,-500.0,0.00019315,3]
[350120328,1737641434513,-500.0,0.00019315,3]
[350120330,1737641434521,-324.98261994,0.00019315,3]
[350120331,1737641434530,-500.0,0.00019315,3]
[350120333,1737641434540,-500.0,0.00019315,3]
[350120335,1737641434549,-511.46951531,0.00019315,3]
[350120336,1737641434559,-162.0,0.00019315,2]
[350120339,1737641434570,-162.0,0.00019315,2]
[350120340,1737641434580,-504.56620296,0.00019315,3]
[350120342,1737641434588,-500.0,0.00019315,3]
[350120344,1737641434597,-552.20278639,0.00019315,3]
[350120346,1737641434608,-500.0,0.00019315,3]
[350120349,1737641434617,-596.22,0.00019315,2]
[350120351,1737641434626,-500.0,0.00019315,3]
[350120353,1737641434636,-500.0,0.00019315,3]
[350120355,1737641434645,-500.0,0.00019315,3]
[350120357,1737641434654,-707.01,0.00019315,3]
[350120359,1737641434664,-500.0,0.00019315,3]
[350120360,1737641434673,-192.27355208,0.00019315,3]
[350120362,1737641434682,-500.0,0.00019315,3]
[350120364,1737641434692,-500.0,0.00019315,3]
[350120366,1737641434701,-2863.04,0.00019315,3]
[350120368,1737641434711,-985.65,0.00019315,3]
[350120371,1737641434720,-554.69,0.00019315,3]
[350120372,1737641434729,-1663.1,0.00019315,3]
[350120374,1737641434739,-500.0,0.00019315,2]
[350120377,1737641434748,-500.0,0.00019315,3]
[350120378,1737641434757,-500.0,0.00019315,3]
[350120380,1737641434767,-506.36663702,0.00019315,3]
[350120382,1737641434777,-296.41712949,0.00019315,3]
[350120384,1737641434786,-201.90103069,0.00019315,3]
[350120387,1737641434795,-1682.83,0.00019315,3]
[350120388,1737641434804,-500.0,0.00019315,3]
[350120390,1737641434816,-646.32,0.00019315,3]
[350120393,1737641434825,-528.48245023,0.00019315,3]
[350120395,1737641434835,-480.16994304,0.00019315,3]
[350120397,1737641434845,-500.0,0.00019315,3]
[350120398,1737641434855,-625.66,0.00019315,3]
[350120400,1737641434865,-500.0,0.00019315,3]
[350120403,1737641434874,-1467.36,0.00019315,3]
[350120405,1737641434884,-500.0,0.00019315,3]
[350120407,1737641434893,-500.0,0.00019315,3]
[350120409,1737641434902,-272.26056296,0.00019315,3]
[350120411,1737641434912,-500.0,0.00019315,3]
[350120413,1737641434922,-3214.97,0.00019315,3]
[350120415,1737641434932,-500.0,0.00019315,3]
[350120417,1737641434942,-500.0,0.00019315,3]
[350120419,1737641434951,-630.71,0.00019315,3]
[350120421,1737641434960,-7893.77,0.00019315,3]
[350120423,1737641434969,-500.0,0.00019315,3]
[350120425,1737641434979,-627.37,0.00019315,3]
[350120427,1737641434990,-500.0,0.00019315,3]
[350120429,1737641435002,-500.0,0.00019315,3]
[350120431,1737641435011,-500.0,0.00019315,3]
[350120433,1737641435021,-1797.34,0.00019315,3]
[350120434,1737641435031,-500.0,0.00019315,3]
[350120436,1737641435040,-500.0,0.00019315,3]
[350120439,1737641435051,-500.0,0.00019315,3]
[350120441,1737641435060,-500.0,0.00019315,3]
[350120442,1737641435073,-433.16889558,0.00019386,2]
[350120444,1737641435083,-500.0,0.00019409,3]
[350120447,1737641435093,-500.0,0.00019409,3]
[350120449,1737641435102,-500.0,0.00019409,3]
[350120451,1737641435112,-162.0,0.00019421,2]
[350120453,1737641435121,-162.0,0.00019421,2]
[350120455,1737641435130,-500.0,0.00019449,3]
[350120457,1737641435139,-500.0,0.00019449,3]
[350120459,1737641435148,-500.0,0.00019449,3]
[350120461,1737641435158,-12561.98941352,0.00019449,2]
[350120463,1737641435167,-500.0,0.0001945,3]
[350120465,1737641435176,-500.0,0.0001945,3]
[350120467,1737641435186,-500.0,0.00019451,3]
[350120469,1737641435194,-500.0,0.00019451,3]
[350120471,1737641435203,-500.0,0.00019451,3]
[350120473,1737641435212,-500.0,0.00019452,3]
[350120475,1737641435222,-500.0,0.00019452,3]
[350120476,1737641435231,-500.0,0.00019452,3]
[350120478,1737641435240,-500.0,0.00019452,3]
[350120481,1737641435250,-500.0,0.00019452,3]
[350120483,1737641435259,-202.63,0.00019452,3]
[350120485,1737641435268,-500.0,0.00019452,3]
[350120487,1737641435278,-500.0,0.00019452,3]
[350120489,1737641435287,-500.0,0.00019452,3]
[350120491,1737641435296,-230.18554724,0.00019452,3]
[350120493,1737641435306,-303.8,0.00019452,3]
[350120495,1737641435317,-500.0,0.00019452,3]
[350120497,1737641435326,-162.0,0.00019452,2]
[350120499,1737641435335,-162.0,0.00019452,2]
[350120501,1737641435345,-500.0,0.00019452,3]
[350120503,1737641435355,-500.0,0.00019452,3]
[350120505,1737641435364,-596.22,0.00019452,2]
[350120507,1737641435373,-500.0,0.00019452,3]
[350120508,1737641435383,-500.0,0.00019452,3]
[350120511,1737641435394,-707.01,0.00019452,3]
[350120513,1737641435403,-500.0,0.00019452,3]
[350120515,1737641435412,-500.0,0.00019452,3]
[350120517,1737641435422,-2863.04,0.00019452,3]
[350120519,1737641435431,-985.65,0.00019452,3]
[350120521,1737641435440,-1663.1,0.00019452,3]
[350120523,1737641435449,-500.0,0.00019452,2]
[350120524,1737641435458,-500.0,0.00019452,3]
[350120526,1737641435468,-500.0,0.00019452,3]
[350120529,1737641435478,-1682.83,0.00019452,3]
[350120531,1737641435487,-500.0,0.00019452,3]
[350120533,1737641435496,-625.66,0.00019452,3]
[350120535,1737641435505,-500.0,0.00019452,3]
[350120536,1737641435514,-1467.36,0.00019452,3]
[350120538,1737641435526,-346.47376623,0.00019452,3]
[350120551,1737641435639,-500.0,0.00019177,2]
[350120553,1737641435649,-500.0,0.00019177,2]
[350120555,1737641435659,-500.0,0.00019177,2]
[350120557,1737641435669,-500.0,0.00019177,2]
[350120559,1737641435678,-500.0,0.00019177,2]
[350120562,1737641435687,-500.0,0.00019177,2]
[350120563,1737641435696,-500.0,0.00019177,2]
[350120566,1737641435706,-500.0,0.00019177,2]
[350120568,1737641435715,-500.0,0.00019177,2]
[350120570,1737641435725,-500.0,0.00019177,2]